[Event "Titled Tuesday Blitz January 31 Late 2023"]
[White "Deac, Bogdan-Daniel"]
[Black "Yu, Yangyi"]
[WhiteFideId "1226380"]
[BlackFideId "8603820"]
[WhiteElo "2700"]
[BlackElo "2729"]
[Result "1/2-1/2"]
[Round "10"]
[TimeControl "180+2"]
[Date "2023.01.31"]
[WhiteClock "0:00:06"]
[BlackClock "0:00:05"]

1. e4 {[%clk 0:03:00]}  c5 {[%clk 0:02:57]} 2. Nf3 {[%clk 0:03:01]}  Nc6 {[%clk 0:02:57]} 3. d4 {[%clk 0:03:00]}  cxd4 {[%clk 0:02:58]} 4. Nxd4 {[%clk 0:03:01]}  Nf6 {[%clk 0:02:58]} 5. Nc3 {[%clk 0:03:01]}  e5 {[%clk 0:02:59]} 6. Ndb5 {[%clk 0:03:01]}  d6 {[%clk 0:02:59]} 7. Bg5 {[%clk 0:03:01]}  a6 {[%clk 0:02:59]} 8. Na3 {[%clk 0:03:01]}  b5 {[%clk 0:03:00]} 9. Nd5 {[%clk 0:02:32]}  Be7 {[%clk 0:02:59]} 10. Bxf6 {[%clk 0:02:33]}  Bxf6 {[%clk 0:03:00]} 11. c3 {[%clk 0:02:34]}  O-O {[%clk 0:02:59]} 12. Nc2 {[%clk 0:02:33]}  Rb8 {[%clk 0:03:00]} 13. h4 {[%clk 0:02:31]}  g6 {[%clk 0:02:54]} 14. g3 {[%clk 0:02:30]}  Bg7 {[%clk 0:02:51]} 15. Bg2 {[%clk 0:02:20]}  h5 {[%clk 0:02:47]} 16. O-O {[%clk 0:02:17]}  a5 {[%clk 0:02:45]} 17. Qd3 {[%clk 0:02:16]}  Ne7 {[%clk 0:02:40]} 18. Nce3 {[%clk 0:02:13]}  Nxd5 {[%clk 0:02:32]} 19. Nxd5 {[%clk 0:02:13]}  Be6 {[%clk 0:02:29]} 20. Rfd1 {[%clk 0:02:12]}  Kh8 {[%clk 0:02:26]} 21. a3 {[%clk 0:01:40]}  a4 {[%clk 0:02:01]} 22. Qe2 {[%clk 0:01:30]}  Qc8 {[%clk 0:01:52]} 23. Rd3 {[%clk 0:01:24]}  Qc4 {[%clk 0:01:49]} 24. Ne3 {[%clk 0:01:15]}  Qc5 {[%clk 0:01:48]} 25. Rad1 {[%clk 0:01:16]}  Rfd8 {[%clk 0:01:32]} 26. Nd5 {[%clk 0:01:14]}  Rd7 {[%clk 0:01:22]} 27. Kh2 {[%clk 0:01:11]}  Kg8 {[%clk 0:01:01]} 28. Bh3 {[%clk 0:01:09]}  Rf8 {[%clk 0:00:59]} 29. Kg2 {[%clk 0:01:03]}  Kh8 {[%clk 0:00:54]} 30. Qe3 {[%clk 0:00:21]}  Qc6 {[%clk 0:00:37]} 31. Nb4 {[%clk 0:00:18]}  Qc7 {[%clk 0:00:33]} 32. Nd5 {[%clk 0:00:17]}  Qc6 {[%clk 0:00:33]} 33. Kh2 {[%clk 0:00:17]}  Qb7 {[%clk 0:00:29]} 34. Qe2 {[%clk 0:00:13]}  Qc6 {[%clk 0:00:27]} 35. Qd2 {[%clk 0:00:12]}  Qc5 {[%clk 0:00:25]} 36. Qe2 {[%clk 0:00:08]}  Qc6 {[%clk 0:00:24]} 37. Qe3 {[%clk 0:00:08]}  Qb7 {[%clk 0:00:22]} 38. Nb6 {[%clk 0:00:06]}  Rdd8 {[%clk 0:00:18]} 39. Rxd6 {[%clk 0:00:06]}  Rxd6 {[%clk 0:00:18]} 40. Rxd6 {[%clk 0:00:06]}  Bxh3 {[%clk 0:00:17]} 41. Kxh3 {[%clk 0:00:07]}  Qc7 {[%clk 0:00:16]} 42. Rd1 {[%clk 0:00:05]}  f5 {[%clk 0:00:15]} 43. Nd5 {[%clk 0:00:05]}  Qf7 {[%clk 0:00:14]} 44. exf5 {[%clk 0:00:05]}  gxf5 {[%clk 0:00:11]} 45. Kg2 {[%clk 0:00:04]}  f4 {[%clk 0:00:10]} 46. gxf4 {[%clk 0:00:04]}  exf4 {[%clk 0:00:10]} 47. Qf3 {[%clk 0:00:05]}  Qg6+ {[%clk 0:00:10]} 48. Kh1 {[%clk 0:00:04]}  Qg4 {[%clk 0:00:09]} 49. Qxg4 {[%clk 0:00:04]}  hxg4 {[%clk 0:00:10]} 50. Rg1 {[%clk 0:00:05]}  g3 {[%clk 0:00:07]} 51. fxg3 {[%clk 0:00:05]}  fxg3 {[%clk 0:00:07]} 52. Rxg3 {[%clk 0:00:05]}  Rf1+ {[%clk 0:00:07]} 53. Kh2 {[%clk 0:00:04]}  Be5 {[%clk 0:00:07]} 54. Kg2 {[%clk 0:00:04]}  Rd1 {[%clk 0:00:05]} 55. Rg5 {[%clk 0:00:02]}  Rxd5 {[%clk 0:00:05]} 56. Kf3 {[%clk 0:00:03]}  Rc5 {[%clk 0:00:04]} 57. Ke4 {[%clk 0:00:03]}  Bd6 {[%clk 0:00:04]} 58. Rxc5 {[%clk 0:00:03]}  Bxc5 {[%clk 0:00:05]} 59. Kd5 {[%clk 0:00:04]}  Be3 {[%clk 0:00:06]} 60. Kc6 {[%clk 0:00:04]}  Bc1 {[%clk 0:00:06]} 61. Kxb5 {[%clk 0:00:04]}  Bxb2 {[%clk 0:00:06]} 62. Kb4 {[%clk 0:00:05]}  Kg7 {[%clk 0:00:06]} 63. c4 {[%clk 0:00:05]}  Bf6 {[%clk 0:00:05]} 64. c5 {[%clk 0:00:04]}  Bxh4 {[%clk 0:00:05]} 65. Kxa4 {[%clk 0:00:04]}  Kf7 {[%clk 0:00:05]} 66. Kb5 {[%clk 0:00:03]}  Ke7 {[%clk 0:00:05]} 67. Kb6 {[%clk 0:00:03]}  Bf2 {[%clk 0:00:05]} 68. a4 {[%clk 0:00:03]}  Kd7 {[%clk 0:00:05]} 69. a5 {[%clk 0:00:04]}  Kc8 {[%clk 0:00:05]} 70. a6 {[%clk 0:00:04]}  Kb8 {[%clk 0:00:06]} 71. a7+ {[%clk 0:00:04]}  Ka8 {[%clk 0:00:06]} 72. Kc6 {[%clk 0:00:05]}  Kxa7 {[%clk 0:00:05]} 73. Kb5 {[%clk 0:00:06]}  Bxc5 {[%clk 0:00:05]} 1/2-1/2


[Site "https://www.chess.com"]

[Event "Titled Tuesday Blitz January 31 Late 2023"]
[White "Mosadeghpour, Masoud"]
[Black "Bok, Benjamin"]
[WhiteFideId "12519278"]
[BlackFideId "1017063"]
[WhiteElo "2472"]
[BlackElo "2607"]
[Result "1-0"]
[Round "10"]
[TimeControl "180+2"]
[Date "2023.01.31"]
[WhiteClock "0:01:47"]
[BlackClock "0:00:04"]

1. e4 {[%clk 0:03:00]}  c5 {[%clk 0:02:57]} 2. d4 {[%clk 0:03:01]}  cxd4 {[%clk 0:02:57]} 3. c3 {[%clk 0:03:01]}  Nf6 {[%clk 0:02:54]} 4. e5 {[%clk 0:03:00]}  Nd5 {[%clk 0:02:54]} 5. Nf3 {[%clk 0:03:01]}  Nc6 {[%clk 0:02:53]} 6. Bc4 {[%clk 0:03:01]}  Nb6 {[%clk 0:02:53]} 7. Bb3 {[%clk 0:03:02]}  d5 {[%clk 0:02:53]} 8. exd6 {[%clk 0:03:03]}  Qxd6 {[%clk 0:02:53]} 9. O-O {[%clk 0:03:03]}  Be6 {[%clk 0:02:51]} 10. Na3 {[%clk 0:03:04]}  dxc3 {[%clk 0:02:33]} 11. Qe2 {[%clk 0:03:02]}  Bxb3 {[%clk 0:02:00]} 12. axb3 {[%clk 0:03:02]}  Qe6 {[%clk 0:01:41]} 13. Qc2 {[%clk 0:02:53]}  a6 {[%clk 0:01:29]} 14. bxc3 {[%clk 0:02:47]}  Qg6 {[%clk 0:01:23]} 15. Qe2 {[%clk 0:02:43]}  e6 {[%clk 0:01:23]} 16. Ne5 {[%clk 0:02:22]}  Nxe5 {[%clk 0:01:08]} 17. Qxe5 {[%clk 0:02:23]}  Rc8 {[%clk 0:01:08]} 18. Nb5 {[%clk 0:02:19]}  Nd7 {[%clk 0:00:52]} 19. Nd6+ {[%clk 0:02:12]}  Bxd6 {[%clk 0:00:52]} 20. Qxd6 {[%clk 0:02:13]}  e5 {[%clk 0:00:48]} 21. Qb4 {[%clk 0:02:09]}  Qb6 {[%clk 0:00:46]} 22. Qg4 {[%clk 0:02:07]}  g6 {[%clk 0:00:24]} 23. Ba3 {[%clk 0:02:05]}  Qe6 {[%clk 0:00:22]} 24. Qb4 {[%clk 0:02:04]}  b5 {[%clk 0:00:15]} 25. Rad1 {[%clk 0:02:01]}  Rc6 {[%clk 0:00:14]} 26. Qa5 {[%clk 0:02:00]}  f5 {[%clk 0:00:13]} 27. Rd2 {[%clk 0:01:58]}  Kf7 {[%clk 0:00:13]} 28. Rfd1 {[%clk 0:01:58]}  Nf6 {[%clk 0:00:13]} 29. Rd6 {[%clk 0:01:57]}  Rxd6 {[%clk 0:00:12]} 30. Rxd6 {[%clk 0:01:58]}  Qc8 {[%clk 0:00:12]} 31. Qb6 {[%clk 0:01:52]}  Re8 {[%clk 0:00:10]} 32. Rxf6+ {[%clk 0:01:52]}  Kg8 {[%clk 0:00:10]} 33. Rc6 {[%clk 0:01:51]}  Qd7 {[%clk 0:00:10]} 34. h3 {[%clk 0:01:51]}  f4 {[%clk 0:00:09]} 35. Rc7 {[%clk 0:01:49]}  Qd1+ {[%clk 0:00:08]} 36. Kh2 {[%clk 0:01:49]}  f3 {[%clk 0:00:08]} 37. Qc6 {[%clk 0:01:48]}  Rd8 {[%clk 0:00:04]} 38. Qf6 {[%clk 0:01:47]} 1-0


[Site "https://www.chess.com"]

[Event "Titled Tuesday Blitz January 31 Late 2023"]
[White "Oparin, Grigoriy"]
[Black "Duda, Jan-Krzysztof"]
[WhiteFideId "24125890"]
[BlackFideId "1170546"]
[WhiteElo "2667"]
[BlackElo "2724"]
[Result "1/2-1/2"]
[Round "10"]
[TimeControl "180+2"]
[Date "2023.01.31"]
[WhiteClock "0:00:58"]
[BlackClock "0:00:10"]

1. Nf3 {[%clk 0:03:00]}  Nf6 {[%clk 0:02:58]} 2. c4 {[%clk 0:03:01]}  g6 {[%clk 0:02:58]} 3. Nc3 {[%clk 0:03:01]}  d5 {[%clk 0:02:59]} 4. cxd5 {[%clk 0:03:01]}  Nxd5 {[%clk 0:03:00]} 5. g3 {[%clk 0:03:02]}  Bg7 {[%clk 0:03:00]} 6. Bg2 {[%clk 0:03:02]}  Nc6 {[%clk 0:03:00]} 7. O-O {[%clk 0:02:59]}  O-O {[%clk 0:02:57]} 8. d4 {[%clk 0:02:59]}  e5 {[%clk 0:02:55]} 9. e3 {[%clk 0:02:54]}  Nxc3 {[%clk 0:02:38]} 10. bxc3 {[%clk 0:02:55]}  e4 {[%clk 0:02:38]} 11. Nd2 {[%clk 0:02:55]}  f5 {[%clk 0:02:39]} 12. Rb1 {[%clk 0:02:53]}  b6 {[%clk 0:02:31]} 13. f3 {[%clk 0:02:52]}  exf3 {[%clk 0:02:30]} 14. Nxf3 {[%clk 0:02:48]}  Bb7 {[%clk 0:02:27]} 15. c4 {[%clk 0:02:37]}  Na5 {[%clk 0:02:21]} 16. Qe2 {[%clk 0:02:31]}  Re8 {[%clk 0:02:20]} 17. Bb2 {[%clk 0:02:23]}  Bh6 {[%clk 0:02:12]} 18. Ne5 {[%clk 0:02:20]}  Bxg2 {[%clk 0:02:10]} 19. Kxg2 {[%clk 0:02:20]}  Bg7 {[%clk 0:02:08]} 20. Rbd1 {[%clk 0:02:12]}  c5 {[%clk 0:01:53]} 21. Qf3 {[%clk 0:01:59]}  Qe7 {[%clk 0:01:40]} 22. Qd5+ {[%clk 0:01:22]}  Qe6 {[%clk 0:01:33]} 23. dxc5 {[%clk 0:01:22]}  Bxe5 {[%clk 0:01:25]} 24. Bxe5 {[%clk 0:01:23]}  Nxc4 {[%clk 0:01:24]} 25. Bf4 {[%clk 0:01:20]}  Qxd5+ {[%clk 0:01:16]} 26. Rxd5 {[%clk 0:01:21]}  Nxe3+ {[%clk 0:01:17]} 27. Bxe3 {[%clk 0:01:20]}  Rxe3 {[%clk 0:01:18]} 28. cxb6 {[%clk 0:01:12]}  axb6 {[%clk 0:01:17]} 29. Rf2 {[%clk 0:01:12]}  Ra7 {[%clk 0:00:48]} 30. Rd6 {[%clk 0:01:06]}  b5 {[%clk 0:00:41]} 31. Rb6 {[%clk 0:01:04]}  Re5 {[%clk 0:00:38]} 32. Rb2 {[%clk 0:01:05]}  Kg7 {[%clk 0:00:37]} 33. h4 {[%clk 0:00:59]}  Kh6 {[%clk 0:00:25]} 34. R6xb5 {[%clk 0:00:58]}  Rxb5 {[%clk 0:00:24]} 35. Rxb5 {[%clk 0:00:59]}  Rxa2+ {[%clk 0:00:25]} 36. Kh3 {[%clk 0:00:59]}  Ra3 {[%clk 0:00:24]} 37. Kg2 {[%clk 0:00:58]}  Kh5 {[%clk 0:00:23]} 38. Kh3 {[%clk 0:00:56]}  Re3 {[%clk 0:00:22]} 39. Rc5 {[%clk 0:00:56]}  Kh6 {[%clk 0:00:16]} 40. Kg2 {[%clk 0:00:56]}  Re7 {[%clk 0:00:17]} 41. Ra5 {[%clk 0:00:56]}  Kg7 {[%clk 0:00:17]} 42. Rb5 {[%clk 0:00:56]}  Kf6 {[%clk 0:00:18]} 43. Rb6+ {[%clk 0:00:56]}  Ke5 {[%clk 0:00:18]} 44. Kf3 {[%clk 0:00:56]}  Rd7 {[%clk 0:00:17]} 45. Rb5+ {[%clk 0:00:56]}  Rd5 {[%clk 0:00:17]} 46. Rb3 {[%clk 0:00:57]}  Rc5 {[%clk 0:00:10]} 47. Re3+ {[%clk 0:00:56]}  Kf6 {[%clk 0:00:10]} 48. Ra3 {[%clk 0:00:56]}  Re5 {[%clk 0:00:10]} 49. Ra6+ {[%clk 0:00:56]}  Re6 {[%clk 0:00:10]} 50. Ra7 {[%clk 0:00:56]}  h6 {[%clk 0:00:11]} 51. Ra5 {[%clk 0:00:55]}  Rd6 {[%clk 0:00:10]} 52. Ra3 {[%clk 0:00:55]}  Ke5 {[%clk 0:00:07]} 53. Ra5+ {[%clk 0:00:54]}  Rd5 {[%clk 0:00:08]} 54. Ra3 {[%clk 0:00:53]}  g5 {[%clk 0:00:06]} 55. hxg5 {[%clk 0:00:54]}  hxg5 {[%clk 0:00:07]} 56. Re3+ {[%clk 0:00:54]}  Kf6 {[%clk 0:00:04]} 57. Ra3 {[%clk 0:00:54]}  Re5 {[%clk 0:00:02]} 58. Ra6+ {[%clk 0:00:54]}  Re6 {[%clk 0:00:03]} 59. Ra3 {[%clk 0:00:55]}  Rd6 {[%clk 0:00:03]} 60. Rb3 {[%clk 0:00:55]}  Kg6 {[%clk 0:00:04]} 61. Ra3 {[%clk 0:00:54]}  Rc6 {[%clk 0:00:02]} 62. Rb3 {[%clk 0:00:54]}  Kf6 {[%clk 0:00:02]} 63. Ra3 {[%clk 0:00:55]}  Ke6 {[%clk 0:00:02]} 64. Re3+ {[%clk 0:00:55]}  Kd5 {[%clk 0:00:02]} 65. Ra3 {[%clk 0:00:54]}  Ke5 {[%clk 0:00:02]} 66. Ra5+ {[%clk 0:00:54]}  Kf6 {[%clk 0:00:02]} 67. Ra3 {[%clk 0:00:55]}  Rb6 {[%clk 0:00:03]} 68. Rc3 {[%clk 0:00:55]}  g4+ {[%clk 0:00:02]} 69. Kf2 {[%clk 0:00:53]}  Ke5 {[%clk 0:00:02]} 70. Re3+ {[%clk 0:00:52]}  Kd4 {[%clk 0:00:03]} 71. Ra3 {[%clk 0:00:53]}  Rb2+ {[%clk 0:00:03]} 72. Kf1 {[%clk 0:00:53]}  Rd2 {[%clk 0:00:03]} 73. Ra4+ {[%clk 0:00:48]}  Ke3 {[%clk 0:00:03]} 74. Rf4 {[%clk 0:00:48]}  Rd5 {[%clk 0:00:02]} 75. Kg2 {[%clk 0:00:48]}  Kd3 {[%clk 0:00:02]} 76. Kg1 {[%clk 0:00:49]}  Ke2 {[%clk 0:00:02]} 77. Kg2 {[%clk 0:00:49]}  Ke1 {[%clk 0:00:03]} 78. Kg1 {[%clk 0:00:49]}  Rd3 {[%clk 0:00:02]} 79. Kg2 {[%clk 0:00:50]}  Rd2+ {[%clk 0:00:02]} 80. Kg1 {[%clk 0:00:50]}  Rd5 {[%clk 0:00:02]} 81. Kg2 {[%clk 0:00:51]}  Ke2 {[%clk 0:00:03]} 82. Kg1 {[%clk 0:00:51]}  Ke3 {[%clk 0:00:03]} 83. Kg2 {[%clk 0:00:52]}  Re5 {[%clk 0:00:04]} 84. Kg1 {[%clk 0:00:53]}  Kd3 {[%clk 0:00:04]} 85. Kg2 {[%clk 0:00:53]}  Re2+ {[%clk 0:00:03]} 86. Kg1 {[%clk 0:00:53]}  Re3 {[%clk 0:00:03]} 87. Kg2 {[%clk 0:00:54]}  Re5 {[%clk 0:00:03]} 88. Kg1 {[%clk 0:00:54]}  Kc3 {[%clk 0:00:03]} 89. Kg2 {[%clk 0:00:54]}  Ra5 {[%clk 0:00:04]} 90. Kg1 {[%clk 0:00:55]}  Kd3 {[%clk 0:00:05]} 91. Kg2 {[%clk 0:00:55]}  Ke2 {[%clk 0:00:05]} 92. Kg1 {[%clk 0:00:55]}  Ke3 {[%clk 0:00:06]} 93. Kg2 {[%clk 0:00:56]}  Ke2 {[%clk 0:00:05]} 94. Kg1 {[%clk 0:00:56]}  Ra3 {[%clk 0:00:06]} 95. Kg2 {[%clk 0:00:56]}  Rf3 {[%clk 0:00:06]} 96. Ra4 {[%clk 0:00:54]}  Rf2+ {[%clk 0:00:06]} 97. Kg1 {[%clk 0:00:54]}  Rf3 {[%clk 0:00:05]} 98. Kg2 {[%clk 0:00:54]}  Kd2 {[%clk 0:00:05]} 99. Ra2+ {[%clk 0:00:54]}  Kd3 {[%clk 0:00:05]} 100. Ra3+ {[%clk 0:00:54]}  Ke2 {[%clk 0:00:06]} 101. Ra2+ {[%clk 0:00:55]}  Ke3 {[%clk 0:00:06]} 102. Ra3+ {[%clk 0:00:55]}  Ke2 {[%clk 0:00:05]} 103. Ra2+ {[%clk 0:00:56]}  Kd1 {[%clk 0:00:06]} 104. Ra1+ {[%clk 0:00:55]}  Kc2 {[%clk 0:00:06]} 105. Ra2+ {[%clk 0:00:56]}  Kb3 {[%clk 0:00:06]} 106. Ra5 {[%clk 0:00:55]}  Kc4 {[%clk 0:00:06]} 107. Ra4+ {[%clk 0:00:56]}  Kd5 {[%clk 0:00:06]} 108. Ra5+ {[%clk 0:00:56]}  Ke6 {[%clk 0:00:06]} 109. Ra6+ {[%clk 0:00:55]}  Ke5 {[%clk 0:00:07]} 110. Ra5+ {[%clk 0:00:56]}  Kf6 {[%clk 0:00:07]} 111. Ra6+ {[%clk 0:00:57]}  Kg5 {[%clk 0:00:08]} 112. Ra5 {[%clk 0:00:57]}  Rc3 {[%clk 0:00:08]} 113. Kf2 {[%clk 0:00:57]}  Rc2+ {[%clk 0:00:08]} 114. Kg1 {[%clk 0:00:57]}  Rd2 {[%clk 0:00:08]} 115. Rb5 {[%clk 0:00:57]}  Kf6 {[%clk 0:00:09]} 116. Ra5 {[%clk 0:00:58]}  Ke6 {[%clk 0:00:09]} 117. Rb5 {[%clk 0:00:58]}  Rd5 {[%clk 0:00:09]} 118. Rb4 {[%clk 0:00:58]}  Ke5 {[%clk 0:00:10]} 1/2-1/2


[Site "https://www.chess.com"]

[Event "Titled Tuesday Blitz January 31 Late 2023"]
[White "Dominguez Perez, Leinier"]
[Black "Bortnyk, Olexandr"]
[WhiteFideId "3503240"]
[BlackFideId "14120828"]
[WhiteElo "2739"]
[BlackElo "2605"]
[Result "0-1"]
[Round "10"]
[TimeControl "180+2"]
[Date "2023.01.31"]
[WhiteClock "0:00:04"]
[BlackClock "0:00:04"]

1. d4 {[%clk 0:02:54]}  d6 {[%clk 0:03:00]} 2. Nf3 {[%clk 0:02:53]}  Nf6 {[%clk 0:03:00]} 3. e3 {[%clk 0:02:53]}  g6 {[%clk 0:02:58]} 4. Be2 {[%clk 0:02:52]}  Bg7 {[%clk 0:02:59]} 5. O-O {[%clk 0:02:53]}  O-O {[%clk 0:03:00]} 6. c4 {[%clk 0:02:54]}  c5 {[%clk 0:02:58]} 7. Nc3 {[%clk 0:02:54]}  cxd4 {[%clk 0:02:58]} 8. exd4 {[%clk 0:02:54]}  Nc6 {[%clk 0:02:52]} 9. d5 {[%clk 0:02:50]}  Nb4 {[%clk 0:02:52]} 10. a3 {[%clk 0:02:45]}  Na6 {[%clk 0:02:51]} 11. Nd4 {[%clk 0:02:43]}  Bd7 {[%clk 0:02:46]} 12. b4 {[%clk 0:02:38]}  Rc8 {[%clk 0:02:42]} 13. Be3 {[%clk 0:02:32]}  Nc7 {[%clk 0:02:39]} 14. h3 {[%clk 0:02:20]}  a6 {[%clk 0:02:36]} 15. a4 {[%clk 0:02:06]}  e6 {[%clk 0:02:30]} 16. dxe6 {[%clk 0:02:04]}  Nxe6 {[%clk 0:02:31]} 17. a5 {[%clk 0:01:48]}  Nxd4 {[%clk 0:02:16]} 18. Bxd4 {[%clk 0:01:48]}  Be6 {[%clk 0:02:17]} 19. c5 {[%clk 0:01:48]}  dxc5 {[%clk 0:02:13]} 20. Bxc5 {[%clk 0:01:48]}  Re8 {[%clk 0:01:52]} 21. Qxd8 {[%clk 0:01:07]}  Rexd8 {[%clk 0:01:28]} 22. Rad1 {[%clk 0:01:06]}  Nd7 {[%clk 0:00:39]} 23. Ne4 {[%clk 0:01:03]}  Nxc5 {[%clk 0:00:37]} 24. Nxc5 {[%clk 0:01:03]}  Bd5 {[%clk 0:00:36]} 25. Bf3 {[%clk 0:00:37]}  Bxf3 {[%clk 0:00:35]} 26. gxf3 {[%clk 0:00:38]}  Bc3 {[%clk 0:00:21]} 27. Rxd8+ {[%clk 0:00:31]}  Rxd8 {[%clk 0:00:22]} 28. Nxb7 {[%clk 0:00:28]}  Rb8 {[%clk 0:00:22]} 29. Nc5 {[%clk 0:00:26]}  Rxb4 {[%clk 0:00:23]} 30. Nxa6 {[%clk 0:00:23]}  Rb5 {[%clk 0:00:18]} 31. Rc1 {[%clk 0:00:18]}  Bxa5 {[%clk 0:00:18]} 32. Nc5 {[%clk 0:00:17]}  Bb6 {[%clk 0:00:13]} 33. Nd3 {[%clk 0:00:14]}  Rb3 {[%clk 0:00:11]} 34. Rd1 {[%clk 0:00:14]}  Kg7 {[%clk 0:00:11]} 35. Rd2 {[%clk 0:00:13]}  Rb5 {[%clk 0:00:09]} 36. Rb2 {[%clk 0:00:11]}  Rg5+ {[%clk 0:00:07]} 37. Kf1 {[%clk 0:00:11]}  Bd4 {[%clk 0:00:05]} 38. Rb4 {[%clk 0:00:12]}  Bf6 {[%clk 0:00:06]} 39. Rg4 {[%clk 0:00:09]}  Rd5 {[%clk 0:00:05]} 40. Ke2 {[%clk 0:00:09]}  Ra5 {[%clk 0:00:04]} 41. Re4 {[%clk 0:00:08]}  Ra1 {[%clk 0:00:04]} 42. h4 {[%clk 0:00:02]}  Rh1 {[%clk 0:00:04]} 43. Ne1 {[%clk 0:00:02]}  Bxh4 {[%clk 0:00:04]} 44. Ng2 {[%clk 0:00:02]}  Bf6 {[%clk 0:00:03]} 45. f4 {[%clk 0:00:02]}  Ra1 {[%clk 0:00:04]} 46. Ne3 {[%clk 0:00:02]}  h5 {[%clk 0:00:04]} 47. Kf3 {[%clk 0:00:02]}  Ra3 {[%clk 0:00:04]} 48. Rc4 {[%clk 0:00:02]}  Be7 {[%clk 0:00:04]} 49. Rc6 {[%clk 0:00:03]}  Ra4 {[%clk 0:00:04]} 50. Rc7 {[%clk 0:00:04]}  Rxf4+ {[%clk 0:00:03]} 51. Kxf4 {[%clk 0:00:04]}  Bd6+ {[%clk 0:00:03]} 52. Kf3 {[%clk 0:00:04]}  Bxc7 {[%clk 0:00:04]} 53. Nd5 {[%clk 0:00:04]}  Bd6 {[%clk 0:00:05]} 54. Nc3 {[%clk 0:00:04]}  f6 {[%clk 0:00:05]} 55. Ne4 {[%clk 0:00:04]}  Be5 {[%clk 0:00:05]} 56. Nc5 {[%clk 0:00:04]}  Kf7 {[%clk 0:00:05]} 57. Ke4 {[%clk 0:00:04]}  Bd6 {[%clk 0:00:05]} 58. Nd3 {[%clk 0:00:04]}  f5+ {[%clk 0:00:05]} 59. Kf3 {[%clk 0:00:04]}  g5 {[%clk 0:00:05]} 60. Kg2 {[%clk 0:00:04]}  Kf6 {[%clk 0:00:05]} 61. f3 {[%clk 0:00:05]}  g4 {[%clk 0:00:03]} 62. fxg4 {[%clk 0:00:05]}  hxg4 {[%clk 0:00:04]} 63. Nf2 {[%clk 0:00:04]}  Kg5 {[%clk 0:00:04]} 64. Nd3 {[%clk 0:00:04]}  Bc7 {[%clk 0:00:03]} 65. Ne1 {[%clk 0:00:03]}  Bb6 {[%clk 0:00:03]} 66. Nd3 {[%clk 0:00:03]}  f4 {[%clk 0:00:04]} 67. Kf1 {[%clk 0:00:04]}  f3 {[%clk 0:00:04]} 68. Nb2 {[%clk 0:00:03]}  g3 {[%clk 0:00:04]} 69. Nc4 {[%clk 0:00:04]}  g2+ {[%clk 0:00:04]} 0-1


[Site "https://www.chess.com"]

[Event "Titled Tuesday Blitz January 31 Late 2023"]
[White "Kravtsiv, Martyn"]
[Black "Terry, Renato"]
[WhiteFideId "14113147"]
[BlackFideId "3803457"]
[WhiteElo "2598"]
[BlackElo "2520"]
[Result "1-0"]
[Round "10"]
[TimeControl "180+2"]
[Date "2023.01.31"]
[WhiteClock "0:00:36"]
[BlackClock "0:00:03"]

1. e4 {[%clk 0:03:00]}  g6 {[%clk 0:02:59]} 2. d4 {[%clk 0:03:00]}  Bg7 {[%clk 0:03:00]} 3. Nc3 {[%clk 0:03:00]}  c6 {[%clk 0:03:00]} 4. f4 {[%clk 0:03:00]}  d5 {[%clk 0:03:01]} 5. e5 {[%clk 0:03:00]}  h5 {[%clk 0:02:57]} 6. Nf3 {[%clk 0:02:59]}  Nh6 {[%clk 0:02:57]} 7. Bd3 {[%clk 0:03:00]}  Bf5 {[%clk 0:02:57]} 8. O-O {[%clk 0:02:57]}  e6 {[%clk 0:02:56]} 9. Be3 {[%clk 0:02:52]}  Bf8 {[%clk 0:02:56]} 10. Ne2 {[%clk 0:02:50]}  Be7 {[%clk 0:02:54]} 11. h3 {[%clk 0:02:50]}  h4 {[%clk 0:02:54]} 12. Bf2 {[%clk 0:02:46]}  Nd7 {[%clk 0:02:51]} 13. b3 {[%clk 0:02:43]}  Bxd3 {[%clk 0:02:48]} 14. Qxd3 {[%clk 0:02:42]}  Nf5 {[%clk 0:02:49]} 15. c4 {[%clk 0:02:40]}  a5 {[%clk 0:02:44]} 16. Rfc1 {[%clk 0:02:34]}  Qb6 {[%clk 0:02:43]} 17. Nc3 {[%clk 0:02:28]}  Qa6 {[%clk 0:02:42]} 18. Nd1 {[%clk 0:02:27]}  a4 {[%clk 0:02:38]} 19. Rab1 {[%clk 0:02:10]}  Nb6 {[%clk 0:02:26]} 20. Ne3 {[%clk 0:02:07]}  Nxe3 {[%clk 0:02:01]} 21. Bxe3 {[%clk 0:02:07]}  axb3 {[%clk 0:01:44]} 22. axb3 {[%clk 0:02:06]}  Qa2 {[%clk 0:01:44]} 23. Bf2 {[%clk 0:01:58]}  Kf8 {[%clk 0:01:40]} 24. c5 {[%clk 0:01:54]}  Nd7 {[%clk 0:01:40]} 25. Qc3 {[%clk 0:01:52]}  Qa5 {[%clk 0:01:31]} 26. b4 {[%clk 0:01:45]}  Qb5 {[%clk 0:01:29]} 27. Ra1 {[%clk 0:01:43]}  Rxa1 {[%clk 0:01:19]} 28. Rxa1 {[%clk 0:01:42]}  Kg7 {[%clk 0:01:20]} 29. Ra5 {[%clk 0:01:36]}  Qe2 {[%clk 0:01:19]} 30. Ra7 {[%clk 0:01:34]}  Qb5 {[%clk 0:01:03]} 31. Ra5 {[%clk 0:01:28]}  Qe2 {[%clk 0:01:02]} 32. Qe1 {[%clk 0:01:29]}  Qb2 {[%clk 0:00:36]} 33. Ra7 {[%clk 0:01:27]}  Rb8 {[%clk 0:00:35]} 34. Kh2 {[%clk 0:01:13]}  Qc2 {[%clk 0:00:15]} 35. Bxh4 {[%clk 0:01:11]}  Bxh4 {[%clk 0:00:15]} 36. Qxh4 {[%clk 0:01:11]}  Qf5 {[%clk 0:00:16]} 37. Qg5 {[%clk 0:01:03]}  Qe4 {[%clk 0:00:14]} 38. Kg3 {[%clk 0:00:58]}  Qe3 {[%clk 0:00:03]} 39. Qe7 {[%clk 0:00:55]}  Nf8 {[%clk 0:00:04]} 40. h4 {[%clk 0:00:43]}  g5 {[%clk 0:00:02]} 41. Qxg5+ {[%clk 0:00:42]}  Kh8 {[%clk 0:00:02]} 42. f5 {[%clk 0:00:37]}  Nh7 {[%clk 0:00:03]} 43. Qxe3 {[%clk 0:00:36]} 1-0


[Site "https://www.chess.com"]

[Event "Titled Tuesday Blitz January 31 Late 2023"]
[White "Zierk, Steven"]
[Black "Timmermans, Mark"]
[WhiteFideId "2034255"]
[BlackFideId "1026399"]
[WhiteElo "2488"]
[BlackElo "2392"]
[Result "1-0"]
[Round "10"]
[TimeControl "180+2"]
[Date "2023.01.31"]
[WhiteClock "0:00:19"]
[BlackClock "0:00:18"]

1. e4 {[%clk 0:03:00]}  e5 {[%clk 0:02:59]} 2. Nf3 {[%clk 0:03:00]}  Nc6 {[%clk 0:03:00]} 3. Bc4 {[%clk 0:03:01]}  Nf6 {[%clk 0:03:00]} 4. d4 {[%clk 0:03:01]}  exd4 {[%clk 0:03:00]} 5. e5 {[%clk 0:03:02]}  d5 {[%clk 0:03:00]} 6. Bb5 {[%clk 0:03:02]}  Ne4 {[%clk 0:03:01]} 7. Nxd4 {[%clk 0:03:02]}  Bc5 {[%clk 0:03:01]} 8. O-O {[%clk 0:03:00]}  Bd7 {[%clk 0:03:00]} 9. Bxc6 {[%clk 0:03:00]}  bxc6 {[%clk 0:03:01]} 10. Be3 {[%clk 0:03:00]}  O-O {[%clk 0:02:45]} 11. f3 {[%clk 0:02:59]}  Ng5 {[%clk 0:02:45]} 12. Nc3 {[%clk 0:02:55]}  f6 {[%clk 0:02:34]} 13. exf6 {[%clk 0:02:53]}  Qxf6 {[%clk 0:02:33]} 14. Qd2 {[%clk 0:02:53]}  Nf7 {[%clk 0:01:59]} 15. Nb3 {[%clk 0:02:48]}  Bd6 {[%clk 0:01:59]} 16. Bd4 {[%clk 0:02:40]}  Qg6 {[%clk 0:01:14]} 17. Rae1 {[%clk 0:02:33]}  Ng5 {[%clk 0:01:09]} 18. Kh1 {[%clk 0:02:29]}  Qh5 {[%clk 0:01:09]} 19. f4 {[%clk 0:02:11]}  Rae8 {[%clk 0:00:44]} 20. Rxe8 {[%clk 0:02:06]}  Bxe8 {[%clk 0:00:42]} 21. Bxa7 {[%clk 0:02:02]}  Bg6 {[%clk 0:00:39]} 22. Bc5 {[%clk 0:01:10]}  Ne4 {[%clk 0:00:34]} 23. Nxe4 {[%clk 0:01:09]}  Bxe4 {[%clk 0:00:35]} 24. Bxd6 {[%clk 0:01:08]}  cxd6 {[%clk 0:00:36]} 25. a4 {[%clk 0:01:07]}  Rf6 {[%clk 0:00:33]} 26. Kg1 {[%clk 0:00:57]}  Rh6 {[%clk 0:00:30]} 27. g3 {[%clk 0:00:53]}  Rg6 {[%clk 0:00:22]} 28. a5 {[%clk 0:00:41]}  Qh3 {[%clk 0:00:21]} 29. Qf2 {[%clk 0:00:34]}  c5 {[%clk 0:00:22]} 30. Nd2 {[%clk 0:00:29]}  h5 {[%clk 0:00:21]} 31. Nxe4 {[%clk 0:00:28]}  dxe4 {[%clk 0:00:22]} 32. Qg2 {[%clk 0:00:20]}  Qe6 {[%clk 0:00:18]} 33. f5 {[%clk 0:00:19]} 1-0


[Site "https://www.chess.com"]